Workbook

Sheet Intro
C4: Dairy systems key performance indicator tool
D7: Which calving system do you use?

Sheet Block Calving
B2: If you already know your KPIs please enter them in the white boxes below
B3: Please note if you have a KPI value but want a new one calculated, leave the row blank for that KPI
B4: Move your mouse over red triangles for more information
B5: Dairy enterprise KPIs - block calving
B6: Cows and heifers calved within the first 6 weeks | G6: %
B7: Herd replacement rate | G7: %
B8: Solids output per ha | G8: kg milk solids/ha
B9: Milk yield from forage (litres) | G9: litres
B10: Milk yield from forage (milk solids) | G10: kg milk solids
B11: Overheads (excluding rent and finance) | G11: ppl
B12: Genetic merit | G12: Percentile
B13: Business financial measures
B14: Full economic net margin | G14: ppl
B15: Full economic costs of production | G15: ppl
B16: Return on tenants-type capital | G16: %
B19: Otherwise, fill out the white boxes in the form below using your figures for the last 12 months.
B21: Milk
B22: Total annual litres produced | G22: litres
B23: Average butterfat % | G23: %
B24: Average protein % | G24: %
B26: Inputs
B27: Total forage area used for herd | G27: hectares
B28: Concentrate used per cow | G28: kg
B30: Herd
B31: Average number of cows in herd
B32: Number of cows (incl. heifers) calved in first 6 weeks
B33: Total number of cows to calve
B34: Total number of cows leaving herd
B36: Income
B37: Milk Sales
B38: Milking cow sales
B39: Cull sales
B40: Calf and heifer sales
B41: Other dairy income (e.g. from muck sales etc)
B43: Expenses
B44: Livestock costs | C44: Dairy heifer/cow/bull purchases
B45: Feed costs | C45: Cow concentrates
C46: Bulk feeds (inc. purchased forage)
C47: Youngstock concentrates
C48: Minerals and supplements
C49: Short-term keep
C50: Value of homegrown cereals and proteins
B51: Forage costs | C51: Fertiliser
C52: Lime
C53: Seeds and sprays
C54: Silage additive, plastic and forage sundries
B55: Dairy variable costs | C55: Vet and medicine
C56: AI, semen and bull hire
C57: Dairy office and recording
C58: Parlour - service and maintenance
C59: Parlour - dairy chemicals
C60: Dairy sundries
C61: Straw and bedding
B62: Overheads | C62: Paid labour
C63: Family/unpaid labour
C64: Repairs and spares
C65: Fuel and oil
C66: Electricity
C67: Vehicle tax and insurance
C68: Contractors
C69: Water
C70: General insurance
C71: Office costs
C72: Miscellaneous costs
C73: Council tax
C74: Advice and professional fees
C75: Repairs/maintenance on land and buildings
C76: Depreciation (fixtures/machinery/vehicles)
C77: Depreciation (buildings)
C78: Rent
C79: Bank charges (excluding interest)
C80: Rental value of owned land
B82: Capital employed
B83: Management valuations | C83: Opening valuation of dairy livestock
C84: Closing valuation of dairy livestock
C85: Machinery
C86: Feed in store
C87: Fuel in store
C88: Fertiliser in store
B90: Genetics - Spring Block
B91: Number of cows in spring block | E91: (If zero, leave blank)
B92: SCI percentile score
B94: Genetics - Autumn Block
B95: Number of cows in autumn block | E95: (If zero, leave blank)
B96: ACI percentile score
A101: Please note that any user-provided KPI values will be displayed instead of the calculated values.
A102: If you wish to only see KPIs calculated from your inputs please delete entries from the first table on this page.

Sheet Block calving KPIs
B1: Block Calving KPIs
B4: Dairy enterprise KPIs | C4: Excellent | D4: Good | E4: Average | F4: Your Performance
B5: Cows and heifers calved within the first 6 weeks | C5: >90% | D5: 0.8 | E5: 0.7 | F5: =IF(ISBLANK('Block Calving'!F6),'Block Calving'!F32/'Block Calving'!F33,'Block Calving'!F6) -> 
B6: Herd replacement rate | C6: <20% | D6: 0.22 | E6: 0.26 | F6: =IF(ISBLANK('Block Calving'!F7),'Block Calving'!F34/'Block Calving'!F31,'Block Calving'!F7) -> 
B7: Solids output (kg milk solids per ha) | C7: >1,500 | D7: 1250 | E7: 1100 | F7: =IF(ISBLANK('Block Calving'!F8),('Block Calving'!F22*1.03)*('Block Calving'!F23+'Block Calving'!F24)/'Block Calving'!F27,'Block Calving'!F8) -> 
B8: Milk yield from forage (litres) | C8: >5,000 | D8: 4000 | E8: 2750 | F8: =IF(ISBLANK('Block Calving'!F9),('Block Calving'!F22/'Block Calving'!F31)-('Block Calving'!F28/0.45),'Block Calving'!F9) -> 
B9: Milk yield from forage (kg milk solids) | C9: >427 | D9: 342 | E9: 235 | F9: =IF(ISBLANK('Block Calving'!F10),(('Block Calving'!F22/'Block Calving'!F31)-('Block Calving'!F28/0.45))*1.03*('Block Calving'!F23+'Block Calving'!F24),'Block Calving'!F10) -> 
B10: Overheads* (ppl) | C10: 9 | D10: 10.5 | E10: 12.5 | F10: =IF(ISBLANK('Block Calving'!F11),SUM('Block Calving'!F62:F77)/'Block Calving'!F22*100,'Block Calving'!F11) -> 
B11: Genetic Merit | C11: 0.05 | D11: 0.25 | E11: 0.5 | F11: =IF(ISBLANK('Block Calving'!F12),IF(ISBLANK('Block Calving'!F92),IF(ISBLANK('Block Calving'!F96),"#DIV/0!",'Block Calving'!F96),IF(ISBLANK('Block Calving'!F96),'Block Calving'!F92,(('Block Calving'!F95*'Block Calving'!F96)+('Block Calving'!F91*'Block Calving'!F92))/SUM('Block Calving'!F91,'Block Calving'!F95))),'Block Calving'!F12) -> #DIV/0!
B12: *excluding rent and finance Please note that any user-provided KPI values are displayed over calculated values
B17: Business financial measures | C17: Excellent | D17: Good | E17: Average | F17: Your Performance
B18: Full economic net margin (ppl) | C18: 7 | D18: 2 | E18: -3 | F18: =IF(ISBLANK('Block Calving'!F14),(SUM('Block Calving'!F37:F41,('Block Calving'!F84-'Block Calving'!F83))-SUM('Block Calving'!F44:F80))/'Block Calving'!F22*100,'Block Calving'!F14) -> 
B19: Full economic costs of production (ppl) | C19: <24 | D19: 30 | E19: 34.5 | F19: =IF(ISBLANK('Block Calving'!F15),SUM('Block Calving'!F44:F80)/'Block Calving'!F22*100,'Block Calving'!F15) -> 
B20: Return on tenants-type capital | C20: >20% | D20: 0.14 | E20: 0.03 | F20: =IF(ISBLANK('Block Calving'!F16),(SUM('Block Calving'!F37:F41,('Block Calving'!F84-'Block Calving'!F83))-SUM('Block Calving'!F44:F80))/SUM(AVERAGE('Block Calving'!F84,'Block Calving'!F83),'Block Calving'!F85:F88),'Block Calving'!F16) -> 
E23: Please note the some graph axes run from right to left

Sheet Sheet2 (hidden)
B2: 6-wk calving rate
B3: Deviation on optimum calving block | C3: 2 weeks longer | D3: 4 weeks longer | E3: 6 weeks longer | F3: 8 weeks longer
B4: Impact on profit per cow | C4: -0.05 | D4: -0.1 | E4: -0.24 | F4: -0.38
A7: block (weeks) | B7: 6 | C7: 8 | D7: 10 | E7: 12 | F7: 14
A8: % in 1st 6wk (if linear) | B8: 1 | C8: =$B$7/C7 -> 0.75 | D8: =$B$7/D7 -> 0.6 | E8: 0.5 | F8: 0.4285714286
A9: Impact on prof per cow | B9: 0 | C9: -0.05 | D9: -0.1 | E9: -0.24 | F9: -0.38
A11: block (weeks) | B11: % in 1st 6wk (if linear) | C11: Impact on prof per cow
A12: 14 | B12: 0.4285714286 | C12: -0.38 | F12: 0.8 | G12: =VLOOKUP(F12,B11:C16,2,TRUE) -> -0.05
A13: 12 | B13: 0.5 | C13: -0.24
A14: 10 | B14: 0.6 | C14: -0.1
A15: 8 | B15: 0.75 | C15: -0.05
A16: 6 | B16: 1 | C16: 0

Sheet Block graph calcs - HIDE (hidden)
C1: Cows calved within the first 6 weeks
D2: Average | E2: Good | F2: Excellent | G2: Overcooked performance | H2: Range max | AB2: TEST NUMBER SET
C3: Performance targets | D3: 0.7 | E3: 0.8 | F3: 0.9 | G3: n/a | H3: 1 | AB3: Cows and heifers calved within the first 6 weeks | AF3: 0.85 | AG3: %
D4: Trigger: below average | E4: Above average | F4: Good | G4: Excellent | AB4: Herd replacement rate | AF4: 0.25 | AG4: %
C5: Target ranges | D5: =D3 -> 0.7 | E5: =E3-D3 -> 0.1 | F5: =F3-E3 -> 0.1 | G5: =H3-F3 -> 0.1 | L5: Dairy enterprise KPIs | M5: Average | N5: Good | O5: Excellent | P5: Grey | AB5: Solids output per ha | AF5: 1100 | AG5: kg milk solids/ha
C6: Actual performance | D6: ='Block calving KPIs'!F5 ->  | L6: Cows and heifers calved within the first 6 weeks | M6: 0.58 | N6: 0.75 | O6: 0.9 | AB6: Milk yield from forage | AF6: 4500 | AG6: litres
C7: performance calc | D7: =D6-(D8/2) ->  | L7: Solids output (kg milk solids per ha) | M7: 1000 | N7: 1150 | O7: 1250 | AB7: Milk yield from forage (milk solids) | AF7: =AF6*0.082 -> 369 | AG7: kg milk solids
C8: performance width | D8: 0.006 | L8: Milk yield from forage (litres) | M8: 2600 | N8: 3300 | O8: 4000 | AB8: Overheads (excluding rent and finace) | AF8: 9 | AG8: ppl
L9: Herd replacement rate | M9: 0.25 | N9: 0.21 | O9: 0.18 | P9: 0.18 | AB9: Genetic merit | AF9: 0.45 | AG9: Percentile
C10: Herd Replacement rate (%) | L10: Overheads* as a proportion of income | M10: 0.41 | N10: 0.37 | O10: 0.3 | AB10: Business financial measures
C11: Overcooked performance | D11: Excellent performance | E11: Good performance | F11: Average performance | H11: Range max | L11: Genetic Merit | M11: 0.5 | N11: 0.25 | O11: 0.1 | AB11: Full economic costs of production | AF11: 25 | AG11: ppl
B12: Performance targets | C12: 0.18 | D12: 0.2 | E12: 0.22 | F12: 0.26 | H12: 1 | AB12: Return on tenants-type capital | AF12: 0.13 | AG12: %
C13: Review | D13: Excellent | E13: Good | F13: Above average | G13: Trigger: below average | AB13: Full economic net margin | AF13: 5 | AG13: ppl
B14: Target ranges | C14: =C12 -> 0.18 | D14: =D12-C14 -> 0.02 | E14: =E12-D12 -> 0.02 | F14: =F12-E12 -> 0.04 | G14: =H12-F12 -> 0.74
B15: Actual performance | D15: ='Block calving KPIs'!F6 -> 
B16: performance calc | D16: =D15-(D17/2) -> 
B17: performance width | D17: 0.0025
C19: Solids output per ha (kg milk solids)
D20: Average | E20: Good | F20: Excellent | G20: Overcooked performance | H20: Range max
C21: Performance targets | D21: 1100 | E21: 1250 | F21: 1500 | G21: n/a | H21: 2000
D22: Trigger: below average | E22: Above average | F22: Good | G22: Excellent
C23: Target ranges | D23: =D21 -> 1100 | E23: =E21-D21 -> 150 | F23: =F21-E21 -> 250 | G23: =H21-F21 -> 500
C24: Actual performance | D24: ='Block calving KPIs'!F7 -> 
C25: performance calc | D25: =D24-(D26/2) -> 
C26: performance width | D26: 15
C28: Milk yield from forage (litres)
D29: Average | E29: Good | F29: Excellent | G29: Overcooked performance | H29: Range max
C30: Performance targets | D30: 2750 | E30: 4000 | F30: 5000 | G30: n/a | H30: 8000
D31: Trigger: below average | E31: Above average | F31: Good | G31: Excellent
C32: Target ranges | D32: =D30 -> 2750 | E32: =E30-D30 -> 1250 | F32: =F30-E30 -> 1000 | G32: =H30-F30 -> 3000
C33: Actual performance | D33: ='Block calving KPIs'!F8 -> 
C34: performance calc | D34: =D33-(D35/2) -> 
C35: performance width | D35: 40
C37: Milk yield from forage (kg MS)
D38: Average | E38: Good | F38: Excellent | G38: Overcooked performance | H38: Range max
C39: Performance targets | D39: 235 | E39: 342 | F39: 427 | G39: n/a | H39: 1000
D40: Trigger: below average | E40: Above average | F40: Good | G40: Excellent
C41: Target ranges | D41: =D39 -> 235 | E41: =E39-D39 -> 107 | F41: =F39-E39 -> 85 | G41: =H39-F39 -> 573
C42: Actual performance | D42: ='Block calving KPIs'!F9 -> 
C43: performance calc | D43: =D42-(D44/2) -> 
C44: performance width | D44: 6
C46: Overheads ppl
D47: Excellent | E47: Good | F47: Average | G47: Overcooked performance | H47: Range max
C48: Performance targets | D48: 9 | E48: 10.5 | F48: 12.5 | G48: n/a | H48: 25
D49: Excellent | E49: Good | F49: Above average | G49: Trigger: below average
C50: Target ranges | D50: =D48 -> 9 | E50: =E48-D48 -> 1.5 | F50: =F48-E48 -> 2 | G50: =H48-F48 -> 12.5
C51: Actual performance | D51: ='Block calving KPIs'!F10 -> 
C52: performance calc | D52: =D51-0.003 -> 
C53: performance width | D53: 0.1
C55: Genetic merit
D56: Excellent | E56: Good | F56: Average | G56: Overcooked performance | H56: Range max
C57: Performance targets | D57: 0.05 | E57: 0.25 | F57: 0.5 | G57: n/a | H57: 1
D58: Excellent | E58: Good | F58: Above average | G58: Trigger: below average
C59: Target ranges | D59: =D57 -> 0.05 | E59: =E57-D57 -> 0.2 | F59: =F57-E57 -> 0.25 | G59: =H57-F57 -> 0.5 | L59: Business financial measures | M59: Average | N59: Good | O59: Excellent
C60: Actual performance | D60: ='Block calving KPIs'!F11 -> #DIV/0! | L60: Income retained | M60: 0.02 | N60: 0.16 | O60: 0.2
C61: performance calc | D61: =D60-(D62/2) ->  | L61: Return on tenants-type capital | M61: 0.03 | N61: 0.14 | O61: 0.2
C62: performance width | D62: 0.012 | L62: Full economic costs of production (ppl) | M62: 33 | N62: 29.6 | O62: 23
C64: Full economic costs of production (ppl)
D65: Excellent | E65: Good | F65: Average | H65: Range max
C66: Performance targets | D66: 24 | E66: 30 | F66: 34.5 | H66: 50
D67: Excellent | E67: Good | F67: Above average | G67: Trigger: below average
C68: Target ranges | D68: =D66 -> 24 | E68: =E66-D66 -> 6 | F68: =F66-E66 -> 4.5 | G68: =H66-F66 -> 15.5
C69: Actual performance | D69: ='Block calving KPIs'!F19 -> 
C70: performance calc | D70: =D69-(D71/2) -> 
C71: performance width | D71: 0.25
C73: Return on tenants capital (%)
D74: Average | E74: Good | F74: Excellent | H74: Range max | I74: Range min
C75: Performance targets | D75: 0.03 | E75: 0.14 | F75: 0.2 | H75: 1 | I75: -0.5
D76: Trigger: below average | E76: Above average | F76: Good | G76: Excellent | H76: negative
C77: Target ranges | D77: =D75 -> 0.03 | E77: =E75-D75 -> 0.11 | F77: =F75-E75 -> 0.06 | G77: =H75-F75 -> 0.8 | H77: =I75 -> -0.5
C78: Actual performance | D78: ='Block calving KPIs'!F20 -> 
C79: performance calc | D79: =IF(D78<0,D78+(D80/2),D78-(D80/2)) -> 
C80: performance width | D80: 0.006
C82: full ec net margin ppl
D83: Average | E83: Good | F83: Excellent | H83: Range max | I83: Range min
C84: Performance targets | D84: -3 | E84: 2 | F84: 7 | H84: 20 | I84: -20
D85: Trigger: below average | E85: -ve ab av | F85: Above average | G85: Good | H85: Excellent | I85: negative
C86: Target ranges | D86: =I84-D84 -> -17 | E86: =D84 -> -3 | F86: =E84 -> 2 | G86: =F84-E84 -> 5 | H86: =H84-F84 -> 13
C87: Actual performance | D87: ='Block calving KPIs'!F18 -> 
C88: performance calc | D88: =IF(D87<0,D87+0.003,D87-0.003) -> 
C89: performance width | D89: 0.2

Sheet AYR calving
B2: If you already know your KPIs please enter them in the white boxes below
B3: Please note if you have a KPI value but want a new one calculated, leave the row blank for that KPI
B4: Move your mouse over red triangles for more information
B5: Dairy enterprise KPIs - all year round calving
B6: Pregnancy rate | G6: %
B7: Age at first calving | G7: months
B8: Total purchased feed costs | G8: ppl
B9: Average daily lifetime yield | G9: litres/day
B10: Overheads (excluding rent and finance) | G10: ppl
B11: Genetic Merit | G11: percentile
B12: Business financial measures
B13: Full economic net margin | G13: ppl
B14: Full economic costs of production | G14: ppl
B15: Return on tenants-type capital | G15: %
B19: Otherwise, fill out the white boxes in the form below using your numbers for the last 12 months.
B21: Milk
B22: Total annual litres produced | G22: litres
B23: Average butterfat % | G23: %
B24: Average protein % | G24: %
B25: Approx. annual yield per cow | G25: litres
B27: Herd
B28: First calvers | D28: Sum of ages | G28: months
D29: Total number
B30: Outgoing stock | D30: Average age at death or sale | G30: days
D31: Average milk produced in life time | G31: litres
B32: Breeding | D32: Cows eligible to be bred | G32: head
D33: Cows inseminated | G33: head
D34: Cows that become pregnant | G34: head
B36: Income
B37: Milk Sales
B38: Milking cow sales
B39: Cull sales
B40: Calf and heifer sales
B41: Other dairy income (e.g. from muck sales etc)
B43: Expenses
B44: Livestock costs | C44: Dairy heifer/cow/bull purchases
B45: Feed costs | C45: Cow concentrates
C46: Bulk feeds (inc. purchased forage)
C47: Youngstock concentrates
C48: Minerals and supplements
C49: Winter keep and short term grazing
C50: Value of homegrown cereals and proteins
B51: Forage costs | C51: Fertiliser
C52: Lime
C53: Seeds and sprays
C54: Silage additive, plastic and forage sundries
B55: Dairy variable costs | C55: Vet and medicine
C56: AI, semen and bull hire
C57: Dairy office and recording
C58: Parlour - service and maintenance
C59: Parlour - dairy chemicals
C60: Dairy sundries
C61: Straw and bedding
B62: Overheads | C62: Paid labour
C63: Family/unpaid labour
C64: Repairs and spares
C65: Fuel and oil
C66: Electricity
C67: Vehicle tax and insurance
C68: Contractors
C69: Water
C70: General insurance
C71: Office costs
C72: Miscellaneous costs
C73: Council tax
C74: Advice and professional fees
C75: Repairs/maintenance on land and buildings
C76: Depreciation (fixtures/machinery/vehicles)
C77: Depreciation (buildings)
C78: Rent
C79: Bank charges (excluding interest)
C80: Rental value of owned land
B82: Capital employed
B83: Management valuations | C83: Opening valuation of dairy livestock
C84: Closing valuation of dairy livestock
C85: Machinery
C86: Feed in store
C87: Fuel in store
C88: Fertiliser in store
B90: Genetics
D91: Holstein
D92: Friesian
D93: Ayrshire
B94: Number of cows | D94: Jersey
B95: (If zero, leave blank) | D95: Guernsey
D96: Brown Swiss
D97: Shorthorn
D98: Montbeliarde
D99: Holstein
D100: Friesian
D101: Ayrshire
B102: PLI Percentile score | D102: Jersey
B103: (If not applicable, leave blank) | D103: Guernsey
D104: Brown Swiss
D105: Shorthorn
D106: Montbeliarde
A111: Please note that any user-provided KPI values will be displayed instead of the calculated values.
A112: If you wish to only see KPIs calculated from your inputs please delete entries from the first table on this page.

Sheet AYR KPIs
B1: All Year Round Calving KPIs
B4: Dairy enterprise KPIs | C4: Excellent | D4: Good | E4: Average | F4: Your Performance
B5: Pregnancy rate | C5: >25% | D5: 0.2 | E5: 0.14 | F5: =IF(ISBLANK('AYR calving'!$F$6),('AYR calving'!F33/'AYR calving'!F32)*('AYR calving'!F34/'AYR calving'!F33),'AYR calving'!$F$6) -> 
B6: Age at first calving (months) | C6: 23 | D6: 24 | E6: 27.5 | F6: =IF(ISBLANK('AYR calving'!$F$7),'AYR calving'!F28/'AYR calving'!F29,'AYR calving'!$F$7) -> 
B7: =CONCATENATE("Total purchased feed costs (ppl) - ",'AYR calving'!F25,"L/cow") -> Total purchased feed costs (ppl) - L/cow | C7: =IF(ISBLANK('AYR calving'!$F$25),"#N/A",IF('AYR calving'!$F$25<9001,7,IF('AYR calving'!$F$25>11000,8,7.8))) -> #N/A | D7: =IF(ISBLANK('AYR calving'!$F$25),"#N/A",IF('AYR calving'!$F$25<9001,7.5,IF('AYR calving'!$F$25>11000,8.5,8.5))) -> #N/A | E7: =IF(ISBLANK('AYR calving'!$F$25),"#N/A",IF('AYR calving'!$F$25<9001,8,IF('AYR calving'!$F$25>11000,9.5,9))) -> #N/A | F7: =IF(ISBLANK('AYR calving'!$F$8),'AYR calving'!F45/'AYR calving'!F22*100,'AYR calving'!$F$8) ->  | N7: If this graph isn't showing check you have entered a value into the "Approx. annual yield per cow" row on the AYR input spreadsheet
B8: Average daily lifetime yield (litres/day) | C8: >19 | D8: 14.5 | E8: 12.5 | F8: =IF(ISBLANK('AYR calving'!$F$9),'AYR calving'!F31/'AYR calving'!F30,'AYR calving'!$F$9) -> 
B9: Overheads* (ppl) | C9: 9 | D9: 10 | E9: 12.5 | F9: =IF(ISBLANK('AYR calving'!$F$10),SUM('AYR calving'!F62:F77)/'AYR calving'!F22*100,'AYR calving'!$F$10) -> 
B10: Genetic Merit | C10: 0.05 | D10: 0.25 | E10: 0.5 | F10: =IF(ISBLANK('AYR calving'!F11),SUMPRODUCT('AYR calving'!F91:F98,'AYR calving'!F99:F106)/SUM('AYR calving'!F91:F98),'AYR calving'!F11) -> 
B11: *excluding rent and finance
B12: Please note that any user-provided KPI values are displayed over calculated values
B16: Business financial measures | C16: Excellent | D16: Good | E16: Average | F16: Your Performance
B17: Full economic net margin (ppl) | C17: 7 | D17: 2 | E17: -3 | F17: =IF(ISBLANK('AYR calving'!$F$13),(SUM('AYR calving'!F37:F41,('AYR calving'!F84-'AYR calving'!F83))-SUM('AYR calving'!F44:F80))/'AYR calving'!F22*100,'AYR calving'!$F$13) -> 
B18: Full economic costs of production (ppl) | C18: <27.5 | D18: 30 | E18: 34.5 | F18: =IF(ISBLANK('AYR calving'!$F$14),SUM('AYR calving'!F44:F80)/'AYR calving'!F22*100,'AYR calving'!$F$14) -> 
B19: Return on tenants-type capital | C19: >20% | D19: 0.14 | E19: 0.03 | F19: =IF(ISBLANK('AYR calving'!$F$15),(SUM('AYR calving'!F37:F41,('AYR calving'!F84-'AYR calving'!F83))-SUM('AYR calving'!F44:F80))/SUM(AVERAGE('AYR calving'!F84,'AYR calving'!F83),'AYR calving'!F85:F88),'AYR calving'!$F$15) -> 
E22: Please note the some graph axes run from right to left

Sheet AYR graph calcs - HIDE (hidden)
C1: Pregnancy rate
D2: Average | E2: Good | F2: Excellent | G2: Overcooked performance | H2: Range max | AB2: TEST NUMBER SET
C3: Performance targets | D3: 0.14 | E3: 0.2 | F3: 0.25 | G3: n/a | H3: 1 | AB3: Pregnancy rate | AF3: 0.23 | AG3: %
D4: Trigger: below average | E4: Above average | F4: Good | G4: Excellent | AB4: Age at first calving | AF4: 24 | AG4: months
C5: Target ranges | D5: =D3 -> 0.14 | E5: =E3-D3 -> 0.06 | F5: =F3-E3 -> 0.05 | G5: =H3-F3 -> 0.75 | L5: Dairy enterprise KPIs | M5: Average | N5: Good | O5: Excellent | P5: Grey | AB5: Total purchased feed costs | AF5: 8 | AG5: ppl
C6: Actual performance | D6: ='AYR KPIs'!F5 ->  | L6: Cows and heifers calved within the first 6 weeks | M6: 0.58 | N6: 0.75 | O6: 0.9 | AB6: Average daily lifetime yield | AF6: 15 | AG6: litres/day
C7: performance calc | D7: =D6-(D8/2) ->  | L7: Solids output (kg milk solids per ha) | M7: 1000 | N7: 1150 | O7: 1250 | AB7: Overheads (excluding rent and finace) | AF7: 8 | AG7: ppl
C8: performance width | D8: 0.003 | L8: Milk yield from forage (litres) | M8: 2600 | N8: 3300 | O8: 4000 | AB8: Genetic Merit | AF8: 0.6 | AG8: percentile
L9: Herd replacement rate | M9: 0.25 | N9: 0.21 | O9: 0.18 | P9: 0.18 | AB9: Business financial measures
C10: Age at first calving | L10: Overheads* as a proportion of income | M10: 0.41 | N10: 0.37 | O10: 0.3 | AB10: Full economic costs of production | AF10: 28 | AG10: ppl
C11: Overcooked performance | D11: Excellent performance | E11: Good performance | F11: Average performance | H11: Range max | L11: Genetic Merit | M11: 0.5 | N11: 0.25 | O11: 0.1 | AB11: Return on tenants-type capital | AF11: 0.18 | AG11: %
B12: Performance targets | C12: 22 | D12: 23 | E12: 24 | F12: 27.5 | H12: 30 | AB12: Full economic net margin | AF12: 5 | AG12: ppl
C13: Review | D13: Excellent | E13: Good | F13: Above average | G13: Trigger: below average
B14: Target ranges | C14: =C12 -> 22 | D14: =D12-C12 -> 1 | E14: =E12-D12 -> 1 | F14: =F12-E12 -> 3.5 | G14: =H12-F12 -> 2.5
B15: Actual performance | D15: ='AYR KPIs'!F6 -> 
B16: performance calc | D16: =D15-(D17/2) -> 
B17: performance width | D17: 0.12
C19: =CONCATENATE("Total purchased feed costs (ppl) - ",'AYR calving'!F25,"L/cow") -> Total purchased feed costs (ppl) - L/cow
D20: Excellent | E20: Good | F20: Average | H20: Range max
C21: Performance targets | D21: ='AYR KPIs'!C7 -> #N/A | E21: ='AYR KPIs'!D7 -> #N/A | F21: ='AYR KPIs'!E7 -> #N/A | H21: 15
D22: Excellent | E22: Good | F22: Above average | G22: Trigger: below average
C23: Target ranges | D23: =D21 -> #N/A | E23: =E21-D21 ->  | F23: =F21-E21 ->  | G23: =H21-F21 -> 
C24: Actual performance | D24: ='AYR KPIs'!F7 -> 
C25: performance calc | D25: =D24-0.125 -> 
C26: performance width | D26: 0.13
C28: Average daily lifetime yield
D29: Average | E29: Good | F29: Excellent | G29: Overcooked performance | H29: Range max
C30: Performance targets | D30: 12.5 | E30: 14.5 | F30: 19 | G30: n/a | H30: 25
D31: Trigger: below average | E31: Above average | F31: Good | G31: Excellent
C32: Target ranges | D32: =D30 -> 12.5 | E32: =E30-D30 -> 2 | F32: =F30-E30 -> 4.5 | G32: =H30-F30 -> 6
C33: Actual performance | D33: ='AYR KPIs'!F8 -> 
C34: performance calc | D34: =D33-(D35/2) -> 
C35: performance width | D35: 0.18
C37: Overheads
D38: Excellent | E38: Good | F38: Average | H38: Range max
C39: Performance targets | D39: 9 | E39: 10 | F39: 12.5 | H39: 20
D40: Excellent | E40: Good | F40: Above average | G40: Trigger: below average
C41: Target ranges | D41: =D39 -> 9 | E41: =E39-D39 -> 1 | F41: =F39-E39 -> 2.5 | G41: =H39-F39 -> 7.5
C42: Actual performance | D42: ='AYR KPIs'!F9 -> 
C43: performance calc | D43: =D42-(D44/2) -> 
C44: performance width | D44: 0.12
C46: Genetic merit
D47: Excellent | E47: Good | F47: Average | G47: Overcooked performance | H47: Range max
C48: Performance targets | D48: 0.05 | E48: 0.25 | F48: 0.5 | G48: n/a | H48: 1
D49: Excellent | E49: Good | F49: Above average | G49: Trigger: below average
C50: Target ranges | D50: =D48 -> 0.05 | E50: =E48-D48 -> 0.2 | F50: =F48-E48 -> 0.25 | G50: =H48-F48 -> 0.5
C51: Actual performance | D51: ='AYR KPIs'!F10 -> 
C52: performance calc | D52: =D51-(D53/2) -> 
C53: performance width | D53: 0.01
C55: Full economic costs of production (ppl)
D56: Excellent | E56: Good | F56: Average | H56: Range max
C57: Performance targets | D57: 27.5 | E57: 30 | F57: 34.5 | H57: 40
D58: Excellent | E58: Good | F58: Above average | G58: Trigger: below average
C59: Target ranges | D59: =D57 -> 27.5 | E59: =E57-D57 -> 2.5 | F59: =F57-E57 -> 4.5 | G59: =H57-F57 -> 5.5
C60: Actual performance | D60: ='AYR KPIs'!F18 -> 
C61: performance calc | D61: =D60-0.125 -> 
C62: performance width | D62: 0.25
C64: Return on tenants capital (%)
D65: Average | E65: Good | F65: Excellent | H65: Range max | I65: Range min
C66: Performance targets | D66: 0.03 | E66: 0.14 | F66: 0.2 | H66: 1 | I66: -0.5
D67: Trigger: below average | E67: Above average | F67: Good | G67: Excellent | H67: negative
C68: Target ranges | D68: =D66 -> 0.03 | E68: =E66-D66 -> 0.11 | F68: =F66-E66 -> 0.06 | G68: =H66-F66 -> 0.8 | H68: =I66 -> -0.5 | L68: Business financial measures | M68: Average | N68: Good | O68: Excellent
C69: Actual performance | D69: ='AYR KPIs'!F19 ->  | L69: Income retained | M69: 0.02 | N69: 0.16 | O69: 0.2
C70: performance calc | D70: =IF(D69<0,D69+0.003,D69-0.003) ->  | L70: Return on tenants-type capital | M70: 0.03 | N70: 0.14 | O70: 0.2
C71: performance width | D71: 0.006 | L71: Full economic costs of production (ppl) | M71: 33 | N71: 29.6 | O71: 23
C73: Full economic net margin
D74: Average | E74: Good | F74: Excellent | H74: Range max | I74: Range min
C75: Performance targets | D75: -3 | E75: 2 | F75: 7 | H75: 20 | I75: -20
D76: Trigger: below average | E76: -ve ab av | F76: Above average | G76: Good | H76: Excellent | I76: negative
C77: Target ranges | D77: =I75-D75 -> -17 | E77: =D75 -> -3 | F77: =E75 -> 2 | G77: =F75-E75 -> 5 | H77: =H75-F75 -> 13
C78: Actual performance | D78: ='AYR KPIs'!F17 -> 
C79: performance calc | D79: =IF(D78<0,D78+(D80/2),D78-(D80/2)) -> 
C80: performance width | D80: 0.22

Sheet KPI definitions
A1: Optimal Dairy Systems KPI definitions
B3: BLOCK CALVING SYSTEMS (calve in 12 week block)
B4: Dairy Enterprise KPIs | C4: Excellent (Top 5% performer or aspirational target) | D4: Good (Top 25% performance) | E4: Average (Industry average where available) | F4: Definitions | G4: Figures required | H4: Example calculation | I4: Points to note | J4: Reason KPI selected
B5: Cows & heifers calved within the first 6 weeks (%) | C5: >90% | D5: 0.8 | E5: 0.7 | F5: Number of cows and heifers calved in the first 6 weeks from the planned start of calving ÷ Total number of cows and heifers due to calve × 100 = 6 week calving rate % | G5: ● Number of cows (incl' heifers) calved in first 6 weeks ● Total number of cows to calve | H5: 90 cows calved ÷ 100 cows & heifers in-calf × 100 = 90% | I5: ● Should include served heifers (AI or natural) ● Should not include cows and heifers that haven't been served | J5: Good fertility to achieve a tight block is key to a profitable block calving herd. A tight calving period can lead to more days in milk. If the target 6 week calving rate is not being reached it is an indicator of issues such as fertility and /or cow management.
B6: Herd replacement rate (%) | C6: <20% | D6: 0.22 | E6: 0.26 | F6: The number of animals required to replace cows that have left the herd (including voluntary culls, involuntary culls, deaths, and sold milking animals) during a defined period (usually 12 months) expressed as a percentage of the average herd size during the same period. | G6: ● Number of cull cows, voluntary and involuntary cull cows ● Number of cow deaths ● Number of milking animals sold ● Number of cows in herd | H6: 11 voluntary cull cows + 2 involuntary cull cows + 1 cow deaths + 10 milking animals sold = 24 cows ÷ 100 cows in herd x 100 = 24% herd replacement rate | I6: ● Cows that were TB reactors and culled would be included as involuntary culls | J6: Fewer replacement animals required, through increased cow longevity, results in lower costs and higher lifetime productivity.
B7: Milk solids output per hectare (kg MS/ha) | C7: >1500kg/ha | D7: 1250kg/ha | E7: 1100kg/ha | F7: Milk yield (kg MS) ÷ Total grazing and silage area used only for milking cows = Milk solids output per hectare (kg MS/ha) | G7: ● 12 month milk production in litres ● 12 month average butterfat and protein % ● Total hectares used by the milking herd for grazing and silage | H7: 84,460kg milk solids yield [(1,000,000 litres x 1.03*) x (4.6% butterfat + 3.6% protein ÷ 100) = 1,030,000kg x 0.082] ÷ 75 ha total grazing and silage area = *converts litres to kg of milk | I7: ● Total forage area should include the grazing on the milking platform plus any area that is used to produce forage (ie grass silage, maize etc) for milking and dry cows only ● Only include areas of silage, maize etc that went to the dairy herd ● Exclude areas exclusively used by youngstock or other livestock | J7: This is a calculation based on a combination of yield per cow and stocking rate per hectare. Profitable dairy farming is strongly linked to the amount of grass that is harvested per hectare and together with supplementary feed, how efficiently that grass is converted into milk solids. Milk solids yield per hectare records the amount of milk fat and protein produced per hectare. However this can be limited by the land capability, although knowing the optimum stocking rate for the farm will help optimise the production per hectare without impacting profitability.
B8: Milk yield from forage (litres) and (solids) | C8: >5,000l (427kg) | D8: 4,000l (342kg) | E8: 2,750l (235kg) | F8: Total annual milk production ÷ Average number of cows in herd = Milk yield per cow - The milk produced by concentrates = Milk from forage | G8: ● 12 month milk production in litres ● Average number of cows in the herd ● Average kilos of concentrate fed per cow | H8: 1,000,000 litres annual milk production ÷ 130 cows in herd = 7692 litres/cow/year - 4444 litres/cow/year from concentrates (2000kg/cow/year of concentrate used ÷ 0.45*) = 3248 litres/cow/year from forage (7692 litres – 4444 litres) *this is the amount of concentrate at 13.5MJME/kgDM to produce 1 litre of standard milk | I8: ● Concentrates are anything but forage | J8: Regardless of the farming system quality forage (particularly grazed grass) will always be the cheapest form of feed. The more milk produced from forage the greater the profitability.
B9: Overheads (excluding rent and finance) | C9: 9ppl | D9: 10.5ppl | E9: 12.5ppl | F9: Overheads of the herd but excluding the rent and finance | G9: For a 12 month period CASH OVERHEADS ● Paid labour ● Machinery repairs, spares, tax and insurance ● Machinery hire and contracting ● Electricity and fuel ● Building repairs ● Water ● Telephone, general insurances, professional fees ● Miscellaneous OTHER OVERHEAD COSTS ● Machinery and dairy facilities/buildings depreciation ● Value of unpaid labour (standardise at £30,000/full time equivalent TOTAL MILK PRODUCED (litres) | H9: £34,000 Cash overheads + £30,000 machinery and buildings depreciation + £30,000 unpaid labour value (£30,000 per full-time family person) = £94,000 total overheads (excluding rent and finance) ÷ 1,000,000 litres milk produced x 100 = 9.4ppl | I9: ● Based on Comparable Farm Profit benchmarking which omits rent and finance ● Uses unpaid labour cost of £30,000 per full-time person | J9: Overhead costs are one of the largest sources of variation in the cost of production. Labour, power and machinery are all inter-related, so it is important to measure overheads in detail and benchmark where the best farmers are, find detailed areas to focus on and set targets to lower the cost base. Collecting this data and setting SMART targets will help all dairy farmers assess their business overheads and improve.
B10: Genetic merit | C10: 5th percentile | D10: 25th percentile | E10: 50th percentile | F10: This is the percentile your average £ACI score (for autumn calving) or £SCI (for spring calving) falls into compared with the average GB milk-recorded herd. For more information on how to obtain this value please refer to the 'how to get your genetic merit value' section below. | G10: See ‘How to get your genetic merit value’ section below | H10: See ‘How to get your genetic merit value’ section below | I10: Fully milk recording herds can find their average milking herd genetic merit for either the £PLI (all year round or autumn block calving) or £SCI (spring block calving) through the AHDB Dairy Herd Genetic Report (HGR). Fully milk recording herds are those recording on an ICAR approved scheme at a minimum of 5 times within a lactation. During these recordings each cows has its milk yield recorded and milk samples taken. | J10: The performance of a dairy herd is determined by two factors, the management of the herd and the genetics of the herd. Therefore, in order to drive progress and improve their performance through the Optimal Dairy Systems genetics must be a consideration.
B13: ALL YEAR ROUND CALVING (not 12 week block calving)
B14: Dairy Enterprise KPIs | C14: Excellent (Top 5% performer or aspirational target) | D14: Good (Top 25% performance) | E14: Average (Industry average where available) | F14: Definitions | G14: Figures required | H14: Example calculation | I14: Points to note | J14: Reason KPI selected
B15: Pregnancy rate (%) | C15: >25% | D15: 0.2 | E15: 0.14 | F15: Pregnancy rate (also known as the % cows eligible for service that conceived) is the percentage of cows eligible to be bred in any 21-day period (following a 50-day voluntary waiting period) that are served and hold in calf. | G15: ● Figures from the latest group of calved cows or rolling yearly average ● Number of cows eligible to become pregnant ● Number of cows inseminated ● Number of cows that became pregnant | H15: 50 open cows are eligible to become pregnant (after a 50-day voluntary waiting period) 30 cows are inseminated (30 of 50 open cows) = 60% submission rate 12 cows become pregnant (12 of 30 inseminated cows) = 40% conception rate 60% submission rate x 40% conception rate = 24% pregnancy rate for this 21-day period OR 12 pregnant cows ÷ 50 eligible cows x 100 = 24% pregnancy rate for this 21-day period | I15: ● Use on-farm software if available (eg UNIFORM or DC305, Interherd/Interherd+ and Total Vet) ● If software not available, calculate using the latest group of cows that calved and work back to their insemination ● A 50 day voluntary waiting period is used to standardise the figures for comparability | J15: If any genetic merit is to be passed from one generation to the next fertility is key. Pregnancy rate provides an overall measure of the herd’s fertility and is comparable between farms and systems. It is fundamental to increasing the daily weight of milk sold per cow as well as generating calves for replacement or sale. Pregnancy rate is the best way of measuring the efficiency of pregnancy production as it is real time and takes into account the whole herd unlike other measures of fertility and so has a real impact on profitability.
B16: Age at first calving (months) | C16: 23 months (but not less than 22 months) | D16: 24 months | E16: 27.5 months | F16: The average first calving age over a 12-month period is the addition of all ages of first calvings divided by the total number of first calvings. | G16: ● The individual ages or average age of heifers calved in the 12 month period ● The number of heifers calved in the 12 month period | H16: 26 months (1st heifer) + 25.5 months (2nd heifer) + 24 months (3rd heifer) = 75.5 sum of 3 heifer ages at first calving ÷ 3 heifers' first calvings = 25.2 months of age at first calving | J16: So much of a cow’s lifetime performance, fertility and longevity depends on the rearing it received as a heifer. Achieving target weights and ensuring that heifers calve down at 24 months will benefit animal health and fertility of the herd and drive profitability. This KPI has been selected as if achieved it will contribute to achieving the other KPIs.
B17: Total purchased feed costs (ppl) | C17: 8,000l - 7ppl 10,000l - 7.8ppl 12,000l - 8ppl | D17: 8,000l - 7.5ppl 10,000l - 8.5ppl 12,000l - 8.5ppl | E17: 8,000l - 8ppl 10,000l - 9ppl 12,000l - 9.5ppl | F17: All purchased feed costs including concentrates and bulk/moist feeds. This cost should be divided by the total milk produced. | G17: ● Cost of purchased concentrates/blends for the milking herd ● Cost of purchased straights for the milking herd ● Cost of purchased co-products for the milking herd ● 12 month quantity of milk produced | H17: £70,000 (all purchased cow concentrates, blends, cereal and protein straights, co-products) ÷ 1,000,000 litres annual milk production x 100 = 7 pence per litre (ppl) total purchased feed costs | I17: ● KPI targets based on net margin performance NOT lowest feed cost ● Excludes value of homegrown cereals and proteins ● Fed to cows only ie excludes rearing youngstock | J17: Feed is one of the highest costs and as such represents a key area where there is potential for improving business profitability. It varies considerably depending on dairy system, but can be compared within similar systems and monitored on a monthly, or annual basis. Low feed costs can indicate a higher proportion of production is from forage (particularly when forage is of high quality) and vice versa. This KPI depends not only on the amount of feed the cows eat, but also its price.
B18: Average daily lifetime yield (litres/day) | C18: >19 litres | D18: 14.5 litres | E18: 12.5 litres | F18: The average of total milk sold (litres) divided by age (in days from birth to culling) for cows leaving the herd during the year. | G18: ● Average age in days of the cull cows in 12 month period ● Number of cows culled in 12 month period ● Average age in days of cows that died in 12 month period ● Number of cows died in 12 month period ● Average milk produced over lifetime per culled/died cow | H18: 2189 days average age of cull cows x 13 cull cows + 2,010 days average age of cows that died x 1 cow death = 30,467 days total age of cows culled or died 24,300 litres average produced per cull cow in lifetime x 13 cows + 19,500 litres average produced per cow that died in its lifetime x 1 cow death = 335,400 litres produced in lifetime by cull cows and cows that died So average daily lifetime yield (litres) = 335,400 litres ÷ 30,467 days (total litres produced by cull/died cows ÷ total days of age of cows culled/died) = 11 litres average daily lifetime yield | I18: ● Exclude cows and heifers sold on for further milking or breeding ● Milk produced is all milk whether sold or consumed | J18: Daily lifetime yield averages out total milk production over every day a cow has been alive. Cows that start milking at a young age, have a short calving interval and are healthy enough to last several lactations, will have a much higher LDY than those who are older at first calving, do not get back in calf very quickly and have poor longevity. A high yielding cow that doesn’t make it to the third lactation because of poor health or fertility will have a lower daily lifetime yield than a cow that reaches fifth lactation but with a lower average yield per day.
B19: Overheads (excluding rent and finance) | C19: 9ppl | D19: 10ppl | E19: 12.5ppl | F19: Overheads of the herd but excluding the rent and finance | G19: For a 12 month period CASH OVERHEADS ● Paid labour ● Machinery repairs, spares, tax and insurance ● Machinery hire and contracting ● Electricity and fuel ● Building repairs ● Water ● Telephone, general insurances, professional fees ● Miscellaneous OTHER OVERHEAD COSTS ● Machinery and dairy facilities/buildings depreciation ● Value of unpaid labour (standardise at £30,000/full time equivalent TOTAL MILK PRODUCED (litres) | H19: £34,000 Cash overheads + £30,000 machinery and buildings depreciation + £30,000 unpaid labour value (£30,000 per full-time family person) = £94,000 total overheads (excluding rent and finance) ÷ 1,000,000 litres milk produced x 100 = 9.4ppl | I19: ● Based on Comparable Farm Profit benchmarking which omits rent and finance ● Uses unpaid labour cost of £30,000 per full-time person | J19: Overhead costs are one of the largest sources of variation in the cost of production. Labour, power and machinery are all inter-related, so it is important to measure overheads in detail and benchmark where the best farmers are, find detailed areas to focus on and set targets to lower the cost base. Collecting this data and setting SMART targets will help all dairy farmers assess their business overheads and improve.
B20: Genetic merit | C20: 5th percentile | D20: 25th percentile | E20: 50th percentile | F20: This is the percentile your average £PLI score falls into compared with the average GB milk-recorded herd. For more information on how to obtain this value please refer to the 'how to get your genetic merit value' section below. | G20: See ‘How to get your genetic merit value’ section below | H20: See ‘How to get your genetic merit value’ section below | I20: Fully milk recording herds can find their average milking herd genetic merit for either the £PLI (all year round or autumn block calving) or £SCI (spring block calving) through the AHDB Dairy Herd Genetic Report (HGR). Fully milk recording herds are those recording on an ICAR approved scheme at a minimum of 5 times within a lactation. During these recordings each cows has its milk yield recorded and milk samples taken. | J20: The performance of a dairy herd is determined by two factors, the management of the herd and the genetics of the herd. Therefore, in order to drive progress and improve their performance through the Optimal Dairy Systems genetics must be a consideration.
B23: ALL SYSTEMS | C23: 5-year rolling average targets
B24: Business Financial Measures | C24: Excellent (Top 5% performer or aspirational target) | D24: Good (Top 25% performance) | E24: Average (Industry average where available) | F24: Definitions | G24: Figures Required | H24: Example calculation | I24: Points to note | J24: Reason KPI selected
B25: Full economic net margin (ppl) | C25: 7ppl | D25: 2ppl | E25: -3ppl | F25: Full economic net margin: Difference between the income and costs of milk production as follows: Income ● Milk and dairy livestock sales ● Livestock valuation change ● Other dairy related income (eg muck and 13th payment) less ● All cash costs ● Value of homegrown cereals and proteins ● Depreciation ● Value of all unpaid labour ● Rental value of owned land | G25: For a 12 month period INCOME ● Milk and dairy livestock sales (inc' transfers to beef enterprises) ● Opening and closing valuation of the dairy cows and youngstock ● Other dairy related income CASH COSTS ● Dairy heifer/cow/bull purchases ● Purchased feed and forage ● Value of home-grown cereals and proteins ● Short-term keep ● Fertiliser, seeds and sprays ● Vet and medicines ● AI and breeding ● Contract heifer rearing ● Bedding and dairy/livestock/parlour sundries ● Paid labour ● Machinery repairs, spares, tax and insurance ● Machinery hire and contracting ● Electricity and fuel ● Building repairs ● Rent ● Bank charges ● Water ● Telephone, general insurances, professional fees ● Miscellaneous OTHER OVERHEAD COSTS ● Machinery and dairy facilities/buildings depreciation ● Value of unpaid labour (standardise at £30,000/full time equivalent ● Rental value for owned land (standardise at (£245/ha or £99/ac) TOTAL MILK PRODUCED (litres) | H25: £280,000 Income - £180,000 Cash costs + £50,000 Other overhead costs ÷ 1,000,000 Total milk produced (litres) x 100 = 5 pence per litre (ppl) full economic net margin | I25: ● Should include whole herd (milking cows, dry cows and dairy youngstock) ● Exclude any private drawings and tax ● Sales income should include milk and livestock and any other dairy related income coming from the dairy and youngstock herd eg sales of muck, 13th payments ● Use an unpaid labour cost of £30,000 per full-time person ● Include all cash costs and other overhead costs for both the dairy and youngstock herd ● Value of homegrown cereals and proteins should be the market value ie if sold off farm ● Rental value of owned land should use standardised value of £245/ha (£99/ac) - based on national 5 year average of pasture rented under ATA 95 tenancies ● Does not include interest payments for comparative basis but add back in for an individual farm comparison on a year-to-year basis | J25: Net margin or profit is used to pay for loan repayments, tax and capital expenditure. It is the ultimate measure of the farm’s ability to reinvest, grow and attract a new generation of staff and ownership. It could be considered the ultimate day to day KPI to which all others contribute. The key message is that this one has to be positive or business change may be required .
B26: Full economic costs of production (ppl) | C26: AYR <27.5ppl Block <24ppl | D26: 30ppl | E26: 34.5ppl | F26: Full economic costs of production: Including for milk, replacements and other dairy livestock ● All cash costs ● Value of homegrown cereals and proteins ● Depreciation ● Value of all unpaid labour ● Rental value of owned land | G26: For a 12 month period CASH COSTS ● Dairy heifer/cow/bull purchases ● Purchased feed and forage ● Value of home-grown cereals and proteins ● Short-term keep ● Fertiliser, seeds and sprays ● Vet and medicines ● AI and breeding ● Contract heifer rearing ● Bedding and dairy/livestock/parlour sundries ● Paid labour ● Machinery repairs, spares, tax and insurance ● Machinery hire and contracting ● Electricity and fuel ● Building repairs ● Rent ● Bank charges ● Water ● Telephone, general insurances, professional fees ● Miscellaneous OTHER OVERHEAD COSTS ● Machinery and dairy facilities/buildings depreciation ● Value of unpaid labour (standardise at £30,000/full time equivalent ● Rental value for owned land (standardise at (£245/ha or £99/ac) TOTAL MILK PRODUCED (litres) | H26: £90,000 Cash costs + £50,000 Other overhead costs ÷ 1,000,000 Total milk produced (litres) x 100 = 25 pence per litre (ppl) full economic costs of production | I26: ● This is not a break-even milk price figure ● Include all cash costs and other overhead costs for both the dairy and youngstock ● Use an unpaid labour cost of £30,000 per full-time person ● Value of homegrown cereals and proteins should be the market value ie if sold off farm ● Rental value of owned land should use standardised value of £245/ha (£99/ac) - based on national 5 year average of pasture rented under ATA 95 tenancies ● Does not include calf/heifer/cow sales ● Does not include interest payments for comparative basis but add back in for an individual farm comparison on a year to year basis | J26: This is a key driver of profit. It allows farms of different and similar farming systems to be compared. Knowing the costs of the business is vital. By achieving this KPI the industry will improve its profitability. By setting and achieving a low target for total costs the industry will become more resilient to market volatility and periods of low milk price payments.
B27: Return on tenants-type capital (%) | C27: >20% | D27: 0.14 | E27: 0.03 | F27: Full economic net margin as a proportion of the tenants capital (or assets) is that which only a tenant would own (ie land or buildings are not included), less the value of unpaid labour | G27: For a 12 month period INCOME ● Milk and dairy livestock sales (inc' transfers to beef enterprises) ● Opening and closing valuation of the dairy cows and youngstock ● Other dairy related income CASH COSTS ● Dairy heifer/cow/bull purchases ● Purchased feed and forage ● Value of home-grown cereals and proteins ● Short-term keep ● Fertiliser, seeds and sprays ● Vet and medicines ● AI and breeding ● Contract heifer rearing ● Bedding and dairy/livestock/parlour sundries ● Paid labour ● Machinery repairs, spares, tax and insurance ● Machinery hire and contracting ● Electricity and fuel ● Building repairs ● Rent ● Bank charges ● Water ● Telephone, general insurances, professional fees ● Miscellaneous OTHER OVERHEAD COSTS ● Machinery and dairy facilities/buildings depreciation ● Value of unpaid labour (standardise at £30,000/full time equivalent ● Rental value for owned land (standardise at (£245/ha or £99/ac) TENANTS-TYPE CAPITAL ● Valuation of the dairy livestock ● Valuation of the dairy machinery and dairy facilities ● Average value of dairy feed, forage and fuel in store | H27: £50,000 Full economic net margin ÷ £650,000 Tenants-type capital x 100 = 7.7% Return on tenants-type capital | I27: ● Tenants Capital (or assets) is that which only a tenant only would own ie land or buildings are not included ● Should include whole herd (milking herd and youngstock) ● Use an unpaid labour cost of £30,000 per full-time person ● Rental value of owned land should use standardised value of £245/ha (£99/ac) - based on national 5 year average of pasture rented under ATA 95 tenancies ● Exclude any private drawings and tax ● Should still be calculated for owner occupiers | J27: Return on capital is a very useful measure of business performance and links both the performances of the balance sheet and the profit and loss account. It is also an indicator of the business's ability to generate income. If the business struggles to meet the return on capital targets, it could indicate that it is over capitalised for its size and or underperforming in trading.
B30: HOW TO GET YOUR GENETIC MERIT VALUE
B31: How to get your genetic merit value | C31: Fully milk recording herds can find their average milking herd genetic merit for either the £PLI (all year round or autumn block calving), £SCI (spring block calving) or £ACI (Autumn block calving) through the AHDB Dairy Herd Genetic Report (HGR). Requests should be sent to breeding.evaluations@ahdb.org.uk and include your trading name, business address and milk recording number. Once logged into the HGR scroll down to the Herd Standards table where the drop down menu at the top with automatically have selected ‘Milking Herd’ (highlighted by the green box in the example screen shot below). The second column shows the economic index you have selected for your herd (either £PLI or £SCI) and has highlighted the cell where your milking herd sits. Column one then gives which percentile your herd sits in for the economic index – in the example herd screen shot this is highlighted by the blue box around the 10th percentile. This example herd would enter 10 into this calculator. Please note, if no cell is highlighted in the £PLI/£SCI column your herd genetic merit is in the bottom 99th percentile. The Herd Genetic Report is only available for herds fully milk recording with NMR, CIS and Dale Farm. If you are not able to receive a Herd Genetic Report you can calculate genetic merit with our alternative tool, found at http://dairycobreeding.org.uk/geneticmerit/
B32: Genetic merit example image
